lending/lending_fUSD_20250317
["ID","MTS","AMOUNT","RATE_DAILY","PERIOD"]
[356291471,1742196633485,-150.0,0.00018852,2]
[356291472,1742196633495,-150.0,0.00018854,2]
[356291473,1742196633505,-150.0,0.00018854,2]
[356291474,1742196633514,-150.0,0.00018855,2]
[356291475,1742196633523,-150.0,0.00018858,2]
[356291476,1742196633533,-150.0,0.00018861,2]
[356291477,1742196633543,-150.0,0.00018861,2]
[356291478,1742196633553,-150.0,0.00018863,2]
[356291479,1742196633563,-150.0,0.00018866,2]
[356291480,1742196633572,-150.0,0.00018871,2]
[356291481,1742196633582,-150.0,0.00018872,2]
[356291482,1742196633592,-180475.802,0.00018873,2]
[356291483,1742196633602,-500.0,0.00018873,2]
[356291484,1742196633612,-500.0,0.00018873,2]
[356291485,1742196633622,-150.0,0.00018874,2]
[356291486,1742196633632,-150.0,0.00018875,2]
[356291487,1742196633643,-150.0,0.00018875,2]
[356291488,1742196633652,-150.0,0.00018877,2]
[356291489,1742196633662,-150.0,0.00018878,2]
[356291490,1742196633672,-185.309707,0.00018879,2]
[356291491,1742196633681,-150.0,0.0001888,2]
[356291492,1742196633691,-150.0,0.0001888,2]
[356291493,1742196633701,-504.0,0.00018881,2]
[356291494,1742196633711,-150.0,0.00018881,2]
[356291495,1742196633721,-150.0,0.00018881,2]
[356291496,1742196633731,-150.0,0.00018881,2]
[356291497,1742196633741,-150.0,0.00018882,2]
[356291498,1742196633751,-150.0,0.00018883,2]
[356291499,1742196633762,-150.0,0.0001889,2]
[356291500,1742196633772,-150.0,0.00018892,2]
[356291501,1742196633782,-150.0,0.00018894,2]
[356291502,1742196633792,-7240.12886405,0.00018894,2]
[356291503,1742196633803,-3002.4425,0.000189,2]
[356291504,1742196633812,-16122.29540564,0.000189,2]
[356291536,1742196637826,-644.0,0.0001258,2]
[356291537,1742196637835,-242.16936274,0.0001558,2]
[356291538,1742196637847,-401.83063726,0.0001558,2]
[356291539,1742196637857,-212.0,0.0001858,2]
[356291540,1742196637867,-150.0,0.00018765,2]
[356291541,1742196637876,-150.0,0.00018799,2]
[356291542,1742196637886,-150.0,0.00018858,2]
[356291543,1742196637895,-640.92344391,0.000189,2]
[356291544,1742196637907,-2284.16265045,0.000189,2]
[356291545,1742196637917,-1000.0,0.000189,2]
[356291546,1742196637928,-471.9437,0.000189,2]
[356291547,1742196637938,-586.3634,0.000189,2]
[356291548,1742196637947,-370.4782,0.000189,2]
[356291549,1742196637956,-4480.76245683,0.000189,2]
[356291550,1742196637982,-10690.74614317,0.000189,2]
[356291551,1742196637991,-345.9278,0.000189,2]
[356291552,1742196638001,-5878.58928677,0.000189,2]
[356291553,1742196638016,-4193.86251323,0.000189,2]
[356291554,1742196638026,-1913.68311736,0.000189,2]
[356291555,1742196638037,-216.68548264,0.000189,2]
[356291556,1742196638047,-602.99701593,0.000189,2]
[356291557,1742196638057,-150.0,0.000189,2]
[356291558,1742196638067,-150.0,0.00018908,2]
[356291559,1742196638077,-150.0,0.00018912,2]
[356291560,1742196638087,-150.0,0.00018914,2]
[356291561,1742196638097,-150.0,0.00018919,2]
[356291562,1742196638107,-150.0,0.00018925,2]
[356291563,1742196638116,-150.0,0.00018931,2]
[356291564,1742196638126,-150.0,0.00018933,2]
[356291565,1742196638135,-150.0,0.0001894,2]
[356291566,1742196638145,-150.0,0.00018941,2]
[356291567,1742196638155,-150.0,0.00018942,2]
[356291568,1742196638164,-150.0,0.00018943,2]
[356291569,1742196638174,-150.0,0.00018944,2]
[356291570,1742196638183,-150.0,0.00018945,2]
[356291571,1742196638192,-150.0,0.00018946,2]
[356291572,1742196638203,-150.0,0.00018947,2]
[356291573,1742196638213,-150.0,0.00018947,2]
[356291574,1742196638223,-150.0,0.00018948,2]
[356291575,1742196638232,-150.0,0.00018949,2]
[356291576,1742196638242,-230.46115118,0.00018951,2]
[356291577,1742196638251,-150.0,0.00018952,2]
[356291578,1742196638265,-150.0,0.00018954,2]
[356291579,1742196638274,-150.0,0.00018954,2]
[356291580,1742196638284,-162.73,0.0001896,2]
[356291581,1742196638293,-150.0,0.0001896,2]
[356291582,1742196638303,-150.0,0.0001896,2]
[356291583,1742196638312,-150.0,0.00018965,2]
[356291584,1742196638322,-500.0,0.0001897,2]
[356291585,1742196638333,-500.0,0.0001897,2]
[356291586,1742196638342,-500.0,0.0001897,2]
[356291587,1742196638353,-150.0,0.0001897,2]
[356291588,1742196638362,-500.0,0.00018973,2]
[356291589,1742196638372,-500.0,0.00018973,2]
[356291590,1742196638381,-151.34542949,0.00018973,2]
[356291591,1742196638391,-245.33274561,0.00018973,2]
[356291592,1742196638400,-150.0,0.00018977,2]
[356291593,1742196638410,-150.0,0.00018977,2]
[356291594,1742196638419,-150.0,0.0001898,2]
[356291595,1742196638429,-150.0,0.0001898,2]
[356291596,1742196638438,-150.0,0.00018983,2]
[356291597,1742196638447,-150.0,0.00018985,2]
[356291598,1742196638455,-150.0,0.00018987,2]
[356291599,1742196638464,-150.0,0.00018989,2]
[356291600,1742196638474,-150.0,0.00018989,2]
[356291601,1742196638483,-150.2,0.0001899,2]
[356291602,1742196638493,-150.2,0.0001899,2]
[356291603,1742196638502,-150.2,0.0001899,2]
[356291604,1742196638511,-821.8910431,0.00018994,2]
[356291605,1742196638520,-927.1440906,0.00018994,2]
[356291606,1742196638532,-2201.6369399,0.00018994,2]
[356291607,1742196638541,-1276.15023,0.00018994,2]
[356291608,1742196638550,-1997.3926458,0.00018994,2]
[356291609,1742196638559,-150.0,0.00018995,2]
[356291610,1742196638569,-150.0,0.00018995,2]
[356291611,1742196638578,-150.0,0.00018998,2]
[356291612,1742196638588,-150.0,0.00018998,2]
[356291613,1742196638597,-1000.0,0.00018999,2]
[356291614,1742196638606,-1000.0,0.00018999,2]
[356291615,1742196638616,-1000.0,0.00018999,2]
[356291616,1742196638625,-1000.0,0.00018999,2]
[356291617,1742196638635,-1000.0,0.00018999,2]
[356291618,1742196638645,-300.0,0.00018999,2]
[356291619,1742196638655,-930.53219942,0.00019,2]
[356291620,1742196638664,-60452.10102633,0.00019,2]
[356291621,1742196639753,-3249.95340702,0.00019,2]
[356291622,1742196639765,-899.77210866,0.00019,2]
[356291623,1742196639776,-702.47844533,0.00019,2]
[356291624,1742196639787,-1431.37412263,0.00019,2]
[356291625,1742196639799,-2256.50655973,0.00019,2]
[356291626,1742196639990,-3456.7334078,0.00019,2]
[356291627,1742196640002,-2004.69357214,0.00019,2]
[356291628,1742196640013,-731.521973,0.00019,2]
[356291629,1742196640024,-969.93441918,0.00019,2]
[356291630,1742196640035,-556.043,0.00019,2]
[356291631,1742196640046,-1399.79399091,0.00019,2]
[356291632,1742196640085,-10906.81012829,0.00019,2]
[356291633,1742196640097,-3594.43905136,0.00019,2]
[356291636,1742196642715,-150.0,0.00018949,2]
[356291637,1742196642724,-297.27153168,0.00019,2]
[356291666,1742196644334,-562.94029799,0.00019,2]
[356291667,1742196644349,-8506.48297685,0.00019,2]
[356291668,1742196644361,-2305.68935329,0.00019,2]
[356291669,1742196644388,-14008.10616073,0.00019,2]
[356291670,1742196644400,-772.32478331,0.00019,2]
[356291671,1742196644413,-512.6900035,0.00019,2]
[356291672,1742196644424,-282.22400001,0.00019,2]
[356291673,1742196644435,-386.4901369,0.00019,2]
[356291674,1742196644447,-392.53922624,0.00019,2]
[356291675,1742196644458,-545.755,0.00019,2]
[356291676,1742196644473,-1635.41090626,0.00019,2]
[356291677,1742196644485,-1086.48280957,0.00019,2]
[356291678,1742196644496,-4735.64942374,0.00019,2]
[356291679,1742196644507,-835.04991627,0.00019,2]
[356291680,1742196644525,-39422.04385442,0.00019,2]
[356291681,1742196644535,-284.74638608,0.00019,2]
[356291682,1742196645671,-343.53915486,0.0001862,2]
[356291683,1742196645682,-658.63300375,0.0001862,2]
[356291684,1742196645799,-59.07881658,0.0001862,2]
[356291685,1742196645808,-389970.88483076,0.00019,2]
[356291686,1742196645818,-167.20471877,0.00019,2]
[356291687,1742196645827,-156.0,0.00019,2]
[356291688,1742196645837,-156.0,0.00019,2]
[356291689,1742196645846,-156.0,0.00019,2]
[356291690,1742196645856,-156.0,0.00019,2]
[356291691,1742196645865,-275.41771544,0.00019,2]
[356291692,1742196645875,-3360.7494818,0.00019,2]
[356291693,1742196646022,-843.86942996,0.00019,2]
[356291694,1742196646034,-432.19494406,0.00019,2]
[356291695,1742196646046,-668.30843146,0.00019,2]
[356291698,1742196987512,-300.0,0.00013479,2]
[356291699,1742196987536,-456.636,0.0001348,2]
[356291700,1742196987559,-214.6,0.0001348,2]
[356291701,1742196987581,-3850.49,0.0001348,2]
[356291702,1742196987603,-907.0,0.0001348,2]
[356291703,1742196987624,-1429.0,0.0001348,2]
[356291704,1742196987646,-1271.0,0.0001348,2]
[356291705,1742196987668,-541.0,0.0001348,2]
[356291706,1742196987690,-430.274,0.0001348,2]
[356291709,1742197346507,514.0,0.000201,90]
[356291722,1742197831763,-151.22133507,0.000134,2]
[356291723,1742197831774,-300.0,0.00013479,2]
[356291724,1742197831783,-150.0,0.0001348,2]
[356291725,1742197831793,-894.02866493,0.0001348,2]
[356291726,1742197831973,-524.97133507,0.0001348,2]
[356291727,1742197831985,-571.0,0.0001348,2]
[356291728,1742197831996,-641.0,0.0001348,2]
[356291729,1742197832005,-787.0,0.0001348,2]
[356291730,1742197832016,-2117.43906874,0.0001348,2]
[356291731,1742197832026,-3935.0,0.0001348,2]
[356291732,1742197832035,-150.0,0.0001348,2]
[356291733,1742197832045,-582.726,0.0001348,2]
[356291734,1742197832055,-260.96,0.0001348,2]
[356291735,1742197832065,-151.0,0.0001348,2]
[356291736,1742197832074,-150.247,0.0001348,2]
[356291737,1742197832084,-150.0,0.00014043,2]
[356291738,1742197832093,-420.0,0.00014775,2]
[356291739,1742197832103,-150.0,0.00014827,2]
[356291740,1742197832112,-500.0,0.00014828,2]
[356291741,1742197832121,-866.62,0.00016157,2]
[356291742,1742197832131,-587.0,0.00016195,2]
[356291743,1742197832140,-150.0,0.00016466,2]
[356291744,1742197832149,-150.0,0.0001648,2]
[356291745,1742197832159,-151.0,0.0001648,2]
[356291746,1742197832168,-165.84,0.00016712,2]
[356291747,1742197832178,-250.0,0.00017533,2]
[356291748,1742197832187,-500.0,0.00017631,2]
[356291749,1742197832197,-823.0,0.00017752,2]
[356291750,1742197832206,-150.0,0.00018109,2]
[356291751,1742197832216,-9194.26687511,0.00018264,2]
[356291752,1742197832257,-504.75,0.00018264,2]
[356291799,1742197837689,-230.872,0.0001348,2]
[356291800,1742197837698,-150.0,0.0001648,2]
[356291801,1742197837708,-56.83743335,0.00018264,2]
[356291802,1742197837720,-343.19141017,0.00018264,2]
[356291803,1742197837738,-13800.95428137,0.00018264,2]
[356291804,1742197837748,-200.0,0.00018266,2]
[356291805,1742197837757,-1000.0,0.00018357,2]
[356291806,1742197837767,-866.62,0.00018421,2]
[356291807,1742197837776,-154.01,0.000186,2]
[356291808,1742197837786,-1097.30603928,0.0001862,2]
[356291809,1742197837795,-1762.50049181,0.0001862,2]
[356291810,1742197837805,-434.12775321,0.00018697,2]
[356291811,1742197837815,-1000.0,0.00018773,2]
[356291812,1742197837824,-600.0,0.000188,6]
[356291813,1742197837834,-899.959,0.00018829,2]
[356291814,1742197837976,-516.8545851,0.000189,2]
[356291815,1742197837996,-6516.1159776,0.000189,2]
[356291816,1742197838006,-2500.0,0.000189,2]
[356291817,1742197838016,-636.83519403,0.000189,2]
[356291818,1742197838026,-1300.0,0.000189,6]
[356291819,1742197838036,-177.50792988,0.0001899,2]
[356291820,1742197838046,-150.2,0.0001899,2]
[356291821,1742197838056,-150.2,0.0001899,2]
[356291822,1742197838066,-50.95352966,0.00018999,2]
[356291823,1742197838244,-949.04647034,0.00018999,2]
[356291824,1742197838254,-629.8,0.00018999,2]
[356291825,1742197838264,-814.3229523,0.00018999,2]
[356291826,1742197838274,-675.003224,0.00018999,2]
[356291827,1742197838283,-1956.4176418,0.00018999,2]
[356291828,1742197838293,-1316.47841827,0.00018999,2]
[356291829,1742197838306,-1380.24225203,0.00018999,2]
[356291830,1742197838316,-633.7402461,0.00018999,2]
[356291831,1742197838325,-172.05290562,0.00018999,2]
[356291832,1742197838335,-445.62456625,0.00019,2]
[356291833,1742197838347,-298.80119328,0.00019,2]
[356291834,1742197838357,-2101.19880672,0.00019,2]
[356291835,1742197838368,-376.0213201,0.00019,2]
[356291837,1742197840244,-10927.9053696,0.00019,2]
[356291838,1742197840259,-7070.05327642,0.00019,2]
[356291839,1742197840271,-817.57609995,0.00019,2]
[356291840,1742197840282,-3717.28718053,0.00019,2]
[356291841,1742197840294,-902.57021833,0.00019,2]
[356291842,1742197840305,-1903.78392866,0.00019,2]
[356291843,1742197840316,-842.27958507,0.00019,2]
[356291858,1742197842889,-344.94220916,0.00019,2]
[356291873,1742197844613,-439.6789258,0.00019,2]
[356291874,1742197845830,-6393.38896875,0.00019,2]
[356291875,1742197845996,-585.70187622,0.00019,2]
[356291876,1742197846198,-7321.95849467,0.00019,2]
[356291881,1742197911179,205.0,0.00011,3]
[356291882,1742198108500,157.0,0.00011,3]
[356291883,1742198229705,983.9032029,0.000201,90]
[356291885,1742198345567,250.0,0.00018285,120]
[356291886,1742198405840,157.0,0.00011,3]
[356291887,1742198422410,-151.0,0.0001348,2]
[356291888,1742198434889,-151.0,0.0001348,2]
[356291891,1742198711538,157.0,0.00011,3]
[356291906,1742199037949,-151.0,0.00013828,2]
[356291907,1742199037960,-500.0,0.000151,5]
[356291908,1742199037969,-150.0,0.0001515,2]
[356291909,1742199037980,-1100.0,0.000152,5]
[356291910,1742199037990,-1700.0,0.000153,5]
[356291911,1742199038000,-2200.0,0.000154,5]
[356291912,1742199038010,-2800.0,0.000155,5]
[356291913,1742199038019,-500.0,0.000156,5]
[356291914,1742199038029,-500.0,0.000157,5]
[356291915,1742199038039,-500.0,0.000158,5]
[356291916,1742199038048,-300.0,0.00015897,2]
[356291917,1742199038059,-500.0,0.000159,5]
[356291918,1742199038069,-3432.09096366,0.00015989,2]
[356291919,1742199038086,-582.50903634,0.00015989,2]
[356291920,1742199038097,-712.99345085,0.00016189,2]
[356291921,1742199038107,-464.3269794,0.00016189,2]
[356291922,1742199038117,-658.38642252,0.00016189,2]
[356291923,1742199038126,-2201.08823483,0.00016189,2]
[356291924,1742199038135,-8915.69271628,0.00016189,2]
[356291925,1742199038145,-150.23,0.00016279,2]
[356291926,1742199038154,-150.23,0.00016279,2]
[356291927,1742199038164,-150.23,0.00016279,2]
[356291929,1742199038174,-150.23,0.00016279,2]
[356291931,1742199038184,-150.23,0.00016279,2]
[356291932,1742199038193,-150.23,0.00016279,2]
[356291933,1742199038203,-150.23,0.00016279,2]
[356291934,1742199038213,-150.23,0.00016279,2]
[356291935,1742199038222,-150.23,0.00016279,2]
[356291936,1742199038232,-150.23,0.00016279,2]
[356291937,1742199038241,-150.23,0.00016279,2]
[356291938,1742199038251,-150.23,0.00016279,2]
[356291939,1742199038261,-150.23,0.00016279,2]
[356291940,1742199038270,-150.23,0.00016279,2]
[356291941,1742199038280,-150.23,0.00016279,2]
[356291942,1742199038290,-150.23,0.00016279,2]
[356291943,1742199038300,-150.23,0.00016279,2]
[356291944,1742199038310,-150.23,0.00016279,2]
[356291945,1742199038320,-150.23,0.00016279,2]
[356291946,1742199038329,-150.23,0.00016279,2]
[356291947,1742199038339,-150.23,0.00016279,2]
[356291948,1742199038348,-46030.83709249,0.00016289,2]
[356291951,1742199044582,-469.69130204,0.00016189,2]
[356291952,1742199045996,-73834.87412834,0.00016189,2]
[356291953,1742199046006,-167166.63958561,0.00016289,2]
[356291958,1742200078121,37581.05065703,0.0001,2]
[356291976,1742200232289,-864.29,0.00013223,2]
[356291977,1742200232300,-150.0,0.00014167,2]
[356291978,1742200232310,-150.0,0.00014546,2]
[356291979,1742200232319,-23900.0,0.0001511,2]
[356291980,1742200232329,-416.71,0.00015132,2]
[356291981,1742200232339,-500.0,0.00015151,2]
[356291982,1742200232348,-2751.0,0.00015184,2]
[356291983,1742200232359,-9420.42,0.00015262,2]
[356291984,1742200232369,-200.0,0.00015426,2]
[356291985,1742200232379,-864.29,0.00015487,2]
[356291986,1742200232541,-150.0,0.00015517,2]
[356291987,1742200232551,-500.0,0.00015836,2]
[356291988,1742200232561,-484.03423986,0.000159,2]
[356291989,1742200232571,-3441.06,0.00015989,2]
[356291990,1742200232579,-275.0,0.00015999,2]
[356291991,1742200232589,-14734.2,0.00016,2]
[356291992,1742200232599,-434.12775321,0.00016004,2]
[356291993,1742200232612,-4238.38872693,0.00016041,2]
[356291994,1742200232624,-29.91127307,0.00016041,2]
[356291995,1742200232635,-176.41,0.00016061,2]
[356291996,1742200232644,-1895.3256541,0.00016111,2]
[356291997,1742200232654,-8500.0,0.00016121,2]
[356291998,1742200232664,-8500.0,0.0001613,2]
[356291999,1742200232674,-8500.0,0.00016138,2]
[356292000,1742200232683,-8500.0,0.00016147,2]
[356292001,1742200232693,-8500.0,0.00016156,2]
[356292002,1742200232703,-1742.08707283,0.00016165,2]
[356292003,1742200232719,-479.67229837,0.00016165,2]
[356292004,1742200232732,-1359.45019934,0.00016165,2]
[356292005,1742200232753,-4918.79042946,0.00016165,2]
[356292006,1742200232764,-162.73806818,0.00016173,2]
[356292007,1742200232774,-410.93101791,0.00016174,2]
[356292008,1742200232785,-1399.80111379,0.00016174,2]
[356292025,1742200238416,-1358.61740743,0.00016174,2]
[356292029,1742200238444,-5330.65046087,0.00016174,2]
[356292031,1742200238453,-338.88,0.00016176,2]
[356292033,1742200238462,-3780.90315041,0.00016182,2]
[356292208,1742200240175,-304.496,0.00016182,2]
[356292232,1742200240387,-682.64904373,0.00016182,2]
[356292234,1742200240399,-257.4379956,0.00016182,2]
[356292500,1742200244976,-2801.29996,0.00016182,2]
[356292501,1742200244987,-673.21385026,0.00016182,2]
[356292502,1742200244997,-923.08613474,0.00016189,2]
[356292503,1742200245092,-1547.15942826,0.00016189,2]
[356292504,1742200245141,-1368.96320962,0.00016189,2]
[356292505,1742200245151,-8500.0,0.00016191,2]
[356292506,1742200245162,-200.0,0.000162,2]
[356292507,1742200245172,-195.0,0.000162,2]
[356292508,1742200245182,-2479.69398135,0.000162,2]
[356292557,1742200246350,-1484.56038217,0.000162,2]
[356292563,1742200246405,-4535.74563648,0.000162,2]
[356292565,1742200246414,-8500.0,0.000162,2]
[356292567,1742200246424,-636.83519403,0.000162,2]
[356292570,1742200246434,-786.77572716,0.000162,2]
[356292572,1742200246443,-1601.00909012,0.000162,2]
[356292574,1742200246453,-161.89,0.00016266,2]
[356292576,1742200246463,-500.0,0.00016273,2]
[356292578,1742200246472,-500.0,0.00016273,2]
[356292580,1742200246481,-500.0,0.00016273,2]
[356292582,1742200246491,-509.11576353,0.00016273,2]
[356292584,1742200246500,-500.0,0.00016273,2]
[356292586,1742200246509,-150.17,0.00016279,2]
[356292588,1742200246518,-150.17,0.00016279,2]
[356292590,1742200246528,-150.17,0.00016279,2]
[356292592,1742200246537,-150.17,0.00016279,2]
[356292594,1742200246546,-6284.93,0.00016287,2]
[356292596,1742200246556,-1358.61740743,0.00016288,5]
[356292598,1742200246566,-5662.3,0.00016288,2]
[356292600,1742200246575,-10000.0,0.00016288,2]
[356292602,1742200246584,-953.9,0.00016289,2]
[356292604,1742200246594,-151.0,0.00016289,2]
[356292606,1742200246604,-452.870679,0.00016289,2]
[356292608,1742200246613,-452.870679,0.00016289,2]
[356292610,1742200246624,-151.0,0.00016289,2]
[356292612,1742200246635,-151.0,0.00016289,2]
[356292614,1742200246644,-151.0,0.00016289,2]
[356292616,1742200246654,-151.0,0.00016289,2]
[356292618,1742200246663,-151.0,0.00016289,2]
[356292620,1742200246672,-151.0,0.00016289,2]
[356292622,1742200246682,-186.878822,0.00016289,2]
[356292624,1742200246691,-151.0,0.00016289,2]
[356292626,1742200246702,-186.878822,0.00016289,2]
[356292628,1742200246711,-151.0,0.00016289,2]
[356292630,1742200246721,-151.0,0.00016289,2]
[356292631,1742200246730,-151.0,0.00016289,2]
[356292632,1742200246859,-151.0,0.00016289,2]
[356292633,1742200246873,-151.0,0.00016289,2]
[356292634,1742200246883,-151.0,0.00016289,2]
[356292635,1742200246892,-200.0,0.00016289,2]
[356292636,1742200246903,-151.0,0.00016289,2]
[356292637,1742200246914,-116125.04596876,0.00016289,2]
[356292662,1742201432430,-200.0,0.00015569,2]
[356292663,1742201432440,-664.10549473,0.00015731,2]
[356292664,1742201432486,-2086.89450527,0.00015731,2]
[356292665,1742201432497,-150.0,0.00015769,2]
[356292666,1742201432509,-300.0,0.00015806,2]
[356292667,1742201432519,-23900.0,0.00015807,2]
[356292668,1742201432529,-1453.02,0.00015852,2]
[356292669,1742201432539,-434.12775321,0.00015941,2]
[356292670,1742201432550,-2949.48,0.00015989,2]
[356292671,1742201432559,-5819.77,0.00016,2]
[356292672,1742201432569,-7319.93192049,0.000161,2]
[356292673,1742201432578,-7319.93192041,0.00016111,2]
[356292674,1742201432590,-7319.93192041,0.00016122,2]
[356292675,1742201432599,-7319.93192041,0.00016133,2]
[356292676,1742201432609,-504.0,0.00016137,2]
[356292677,1742201432619,-7319.93192041,0.00016144,2]
[356292678,1742201432628,-150.0,0.00016164,2]
[356292679,1742201432637,-10126.27821512,0.00016189,2]
[356292680,1742201432647,-586.24090984,0.000162,2]
[356292681,1742201432656,-291.98819172,0.000162,2]
[356292684,1742201432822,-500.0,0.000162,2]
[356292686,1742201432833,-500.0,0.000162,2]
[356292688,1742201432842,-500.0,0.000162,2]
[356292690,1742201432851,-500.0,0.000162,2]
[356292692,1742201432862,-500.0,0.000162,2]
[356292694,1742201432871,-500.0,0.000162,2]
[356292696,1742201432880,-500.0,0.000162,2]
[356292698,1742201432890,-500.0,0.000162,2]
[356292700,1742201432899,-500.0,0.000162,2]
[356292701,1742201432908,-500.0,0.000162,2]
[356292702,1742201432918,-500.0,0.000162,2]
[356292703,1742201432928,-500.0,0.000162,2]
[356292704,1742201432937,-500.0,0.000162,2]
[356292705,1742201432947,-500.0,0.000162,2]
[356292706,1742201432956,-500.0,0.000162,2]
[356292707,1742201432965,-500.0,0.000162,2]
[356292708,1742201432974,-500.0,0.000162,2]
[356292709,1742201432983,-500.0,0.000162,2]
[356292710,1742201432993,-500.0,0.000162,2]
[356292711,1742201433003,-500.0,0.000162,2]
[356292712,1742201433012,-500.0,0.000162,2]
[356292713,1742201433022,-500.0,0.000162,2]
[356292714,1742201433032,-500.0,0.000162,2]
[356292715,1742201433042,-500.0,0.000162,2]
[356292716,1742201433051,-500.0,0.000162,2]
[356292717,1742201433061,-500.0,0.000162,2]
[356292718,1742201433071,-500.0,0.000162,2]
[356292719,1742201433082,-500.0,0.000162,2]
[356292720,1742201433092,-500.0,0.000162,2]
[356292721,1742201433102,-500.0,0.000162,2]
[356292722,1742201433112,-500.0,0.000162,2]
[356292723,1742201433122,-500.0,0.000162,2]
[356292724,1742201433132,-500.0,0.000162,2]
[356292725,1742201433142,-500.0,0.000162,2]
[356292726,1742201433153,-500.0,0.000162,2]
[356292727,1742201433164,-500.0,0.000162,2]
[356292728,1742201433174,-500.0,0.000162,2]
[356292729,1742201433183,-500.0,0.000162,2]
[356292730,1742201433194,-500.0,0.000162,2]
[356292731,1742201433204,-500.0,0.000162,2]
[356292732,1742201433214,-500.0,0.000162,2]
[356292733,1742201433224,-500.0,0.000162,2]
[356292734,1742201433234,-500.0,0.000162,2]
[356292735,1742201433244,-500.0,0.000162,2]
[356292736,1742201433254,-500.0,0.000162,2]
[356292737,1742201433264,-500.0,0.000162,2]
[356292738,1742201433274,-500.0,0.000162,2]
[356292739,1742201433285,-500.0,0.000162,2]
[356292740,1742201433294,-500.0,0.000162,2]
[356292741,1742201433304,-500.0,0.000162,2]
[356292742,1742201433314,-500.0,0.000162,2]
[356292743,1742201433324,-500.0,0.000162,2]
[356292744,1742201433334,-500.0,0.000162,2]
[356292745,1742201433344,-500.0,0.000162,2]
[356292746,1742201433355,-500.0,0.000162,2]
[356292747,1742201433365,-500.0,0.000162,2]
[356292748,1742201433375,-500.0,0.000162,2]
[356292749,1742201433385,-500.0,0.000162,2]
[356292750,1742201433397,-500.0,0.000162,2]
[356292751,1742201433407,-500.0,0.000162,2]
[356292752,1742201433417,-500.0,0.000162,2]
[356292753,1742201433427,-500.0,0.000162,2]
[356292754,1742201433437,-500.0,0.000162,2]
[356292755,1742201433447,-500.0,0.000162,2]
[356292756,1742201433457,-952.0,0.000162,2]
[356292757,1742201433467,-554.1031482,0.000162,2]
[356292758,1742201433477,-151.13320698,0.00016273,2]
[356292759,1742201433487,-150.92,0.00016279,2]
[356292760,1742201433496,-150.92,0.00016279,2]
[356292761,1742201433508,-150.92,0.00016279,2]
[356292762,1742201433519,-150.92,0.00016279,2]
[356292763,1742201433530,-150.92,0.00016279,2]
[356292764,1742201433540,-150.92,0.00016279,2]
[356292765,1742201433551,-151.0,0.00016289,2]
[356292766,1742201433562,-200.0,0.00016289,2]
[356292767,1742201433572,-200.0,0.00016289,2]
[356292768,1742201433582,-914.15,0.00016289,2]
[356292769,1742201433593,-200.0,0.00016289,2]
[356292770,1742201433604,-155.939989,0.00016289,2]
[356292771,1742201433613,-151.0,0.00016289,2]
[356292772,1742201433623,-407.583611,0.00016289,2]
[356292773,1742201433633,-407.583611,0.00016289,2]